[Event "Late-Titled-Tuesday-Blitz-October-24-2023"]
[Site "Chess.com"]
[Date "2023.10.24"]
[Round "9"]
[White "familijatop71"]
[Black "Hirna2005"]
[Result "0-1"]
[WhiteElo "2133"]
[BlackElo "2306"]
[TimeControl "180+1"]
[EndTime "15:42:53 PDT"]
[Termination "Hirna2005 won on time"]

1. e4 {[%clk 0:03:00.9]} 1... g6 {[%clk 0:02:58]} 2. d4 {[%clk 0:03:00.6]} 2...
Bg7 {[%clk 0:02:57.9]} 3. Nc3 {[%clk 0:03:01.2]} 3... d6 {[%clk 0:02:58.3]} 4.
f4 {[%clk 0:03:01.5]} 4... a6 {[%clk 0:02:58.3]} 5. Nf3 {[%clk 0:03:01.6]} 5...
b5 {[%clk 0:02:58.5]} 6. Bd3 {[%clk 0:03:02.2]} 6... Nd7 {[%clk 0:02:57.1]} 7.
Qe2 {[%clk 0:03:00.8]} 7... c5 {[%clk 0:02:56.5]} 8. dxc5 {[%clk 0:02:53.9]}
8... Nxc5 {[%clk 0:02:55]} 9. O-O {[%clk 0:02:48.5]} 9... Nf6 {[%clk 0:02:52.3]}
10. Be3 {[%clk 0:02:39.3]} 10... Nxd3 {[%clk 0:02:44.8]} 11. cxd3 {[%clk
0:02:33.6]} 11... O-O {[%clk 0:02:43.9]} 12. d4 {[%clk 0:02:27.1]} 12... Bb7
{[%clk 0:02:38.3]} 13. d5 {[%clk 0:02:18.3]} 13... b4 {[%clk 0:02:38]} 14. e5
{[%clk 0:01:55.2]} 14... dxe5 {[%clk 0:02:27.2]} 15. fxe5 {[%clk 0:01:42.3]}
15... Nxd5 {[%clk 0:02:27]} 16. Nxd5 {[%clk 0:01:41.4]} 16... Qxd5 {[%clk
0:02:26]} 17. Rad1 {[%clk 0:01:39.8]} 17... Qe4 {[%clk 0:02:23.8]} 18. Rd4
{[%clk 0:01:27.2]} 18... Qc6 {[%clk 0:02:20.6]} 19. Rc1 {[%clk 0:01:26]} 19...
Qa4 {[%clk 0:02:05.3]} 20. b3 {[%clk 0:01:12.8]} 20... Qa5 {[%clk 0:02:01.1]}
21. Rd7 {[%clk 0:00:56.4]} 21... Bxf3 {[%clk 0:01:59.8]} 22. Qxf3 {[%clk
0:00:47.7]} 22... Qxe5 {[%clk 0:01:55.6]} 23. Bd4 {[%clk 0:00:43.7]} 23... Qg5
{[%clk 0:01:55.6]} 24. Re1 {[%clk 0:00:28.6]} 24... Rad8 {[%clk 0:01:43.4]} 25.
Bxg7 {[%clk 0:00:20.8]} 25... Kxg7 {[%clk 0:01:33.7]} 26. Rdxe7 {[%clk
0:00:20.2]} 26... Rd2 {[%clk 0:01:27]} 27. R7e2 {[%clk 0:00:19.5]} 27... Rfd8
{[%clk 0:01:23]} 28. h3 {[%clk 0:00:12]} 28... R8d3 {[%clk 0:01:17.6]} 29. Qf2
{[%clk 0:00:07.2]} 29... Rxe2 {[%clk 0:01:14.9]} 30. Qxe2 {[%clk 0:00:06.7]}
30... Rd2 {[%clk 0:01:11.1]} 31. Qf3 {[%clk 0:00:05.1]} 31... Rxa2 {[%clk
0:01:06.1]} 32. Rf1 {[%clk 0:00:05.4]} 32... Qc5+ {[%clk 0:00:58.1]} 33. Kh1
{[%clk 0:00:05.2]} 33... f5 {[%clk 0:00:55]} 34. Qb7+ {[%clk 0:00:04.7]} 34...
Kh6 {[%clk 0:00:54.7]} 35. Qf3 {[%clk 0:00:04.1]} 35... Qd4 {[%clk 0:00:51.4]}
36. Qg3 {[%clk 0:00:02.5]} 36... Qe4 {[%clk 0:00:48]} 37. h4 {[%clk 0:00:01.1]}
37... Rc2 {[%clk 0:00:41.5]} 0-1

[Event "Late-Titled-Tuesday-Blitz-October-24-2023"]
[Site "Chess.com"]
[Date "2023.10.24"]
[Round "9"]
[White "chess94cu"]
[Black "dosto07"]
[Result "1-0"]
[WhiteElo "2654"]
[BlackElo "2538"]
[TimeControl "180+1"]
[EndTime "15:42:54 PDT"]
[Termination "chess94cu won by resignation"]

1. e4 {[%clk 0:02:59.2]} 1... e5 {[%clk 0:02:59.7]} 2. Nf3 {[%clk 0:02:58.7]}
2... Nc6 {[%clk 0:02:59.9]} 3. d4 {[%clk 0:02:59.3]} 3... exd4 {[%clk
0:02:58.7]} 4. Bc4 {[%clk 0:03:00]} 4... Bc5 {[%clk 0:02:58]} 5. c3 {[%clk
0:03:00.1]} 5... d6 {[%clk 0:02:56.5]} 6. cxd4 {[%clk 0:02:58.9]} 6... Bb6
{[%clk 0:02:56.9]} 7. Nc3 {[%clk 0:02:55]} 7... Nf6 {[%clk 0:02:55.2]} 8. h3
{[%clk 0:02:42.1]} 8... O-O {[%clk 0:02:54.1]} 9. O-O {[%clk 0:02:42.8]} 9...
Nxe4 {[%clk 0:02:54.1]} 10. Bxf7+ {[%clk 0:02:27.4]} 10... Rxf7 {[%clk
0:02:53.8]} 11. Nxe4 {[%clk 0:02:27.6]} 11... h6 {[%clk 0:02:53.1]} 12. Be3
{[%clk 0:02:21.1]} 12... Bf5 {[%clk 0:02:42.8]} 13. Ng3 {[%clk 0:02:19.6]} 13...
Qd7 {[%clk 0:02:36.5]} 14. Kh2 {[%clk 0:02:14.2]} 14... Raf8 {[%clk 0:02:34.6]}
15. Nxf5 {[%clk 0:02:04.7]} 15... Rxf5 {[%clk 0:02:30.9]} 16. Rc1 {[%clk
0:02:00.8]} 16... Qf7 {[%clk 0:02:26.5]} 17. b3 {[%clk 0:01:58.5]} 17... Qd5
{[%clk 0:02:18.6]} 18. Qe2 {[%clk 0:01:51.5]} 18... Kh8 {[%clk 0:01:58.2]} 19.
Nh4 {[%clk 0:01:50.2]} 19... R5f6 {[%clk 0:01:52.7]} 20. Qg4 {[%clk 0:01:49.9]}
20... Kh7 {[%clk 0:01:37.2]} 21. Rfd1 {[%clk 0:01:39.8]} 21... a5 {[%clk
0:01:35.1]} 22. Rc4 {[%clk 0:01:29.7]} 22... g5 {[%clk 0:01:22.9]} 23. Nf3
{[%clk 0:01:27.8]} 23... Ne7 {[%clk 0:01:05.7]} 24. Nxg5+ {[%clk 0:00:51]} 24...
hxg5 {[%clk 0:01:03.2]} 25. Bxg5 {[%clk 0:00:51.8]} 25... Re6 {[%clk 0:00:49.3]}
26. Bxe7 {[%clk 0:00:48.3]} 26... Rxe7 {[%clk 0:00:45.6]} 27. Qh4+ {[%clk
0:00:47.7]} 27... Kg8 {[%clk 0:00:40.9]} 28. Qxe7 {[%clk 0:00:47.8]} 28... Rxf2
{[%clk 0:00:40.1]} 29. Rg1 {[%clk 0:00:36.6]} 29... a4 {[%clk 0:00:28.1]} 30.
Rc3 {[%clk 0:00:33.1]} 30... Rf7 {[%clk 0:00:19.9]} 31. Rg3+ {[%clk 0:00:32.7]}
31... Kh7 {[%clk 0:00:12.5]} 32. Qh4+ {[%clk 0:00:31.2]} 1-0

[Event "Late-Titled-Tuesday-Blitz-October-24-2023"]
[Site "Chess.com"]
[Date "2023.10.24"]
[Round "9"]
[White "Balla_Tamas"]
[Black "Giorno"]
[Result "0-1"]
[WhiteElo "2336"]
[BlackElo "2537"]
[TimeControl "180+1"]
[EndTime "15:42:54 PDT"]
[Termination "Giorno won by checkmate"]

1. e4 {[%clk 0:03:00.9]} 1... g6 {[%clk 0:02:40.6]} 2. d4 {[%clk 0:02:59.7]}
2... Bg7 {[%clk 0:02:41.4]} 3. Nc3 {[%clk 0:03:00.4]} 3... c5 {[%clk 0:02:40.9]}
4. Be3 {[%clk 0:02:59.4]} 4... Qa5 {[%clk 0:02:39.2]} 5. Nf3 {[%clk 0:02:53.9]}
5... Nc6 {[%clk 0:02:37.9]} 6. Bc4 {[%clk 0:02:46.8]} 6... cxd4 {[%clk
0:02:31.2]} 7. Nxd4 {[%clk 0:02:45.8]} 7... Qb4 {[%clk 0:02:28]} 8. Nxc6 {[%clk
0:02:19.3]} 8... Bxc3+ {[%clk 0:02:19.3]} 9. bxc3 {[%clk 0:02:12.4]} 9... Qxc3+
{[%clk 0:02:16.9]} 10. Qd2 {[%clk 0:01:51.8]} 10... Qxc4 {[%clk 0:02:12.6]} 11.
Nd4 {[%clk 0:01:43.8]} 11... Nf6 {[%clk 0:02:11.7]} 12. f3 {[%clk 0:01:32.9]}
12... O-O {[%clk 0:02:08.9]} 13. Ne2 {[%clk 0:01:32.4]} 13... d5 {[%clk
0:02:06.3]} 14. e5 {[%clk 0:01:28.9]} 14... Nd7 {[%clk 0:02:06.5]} 15. f4 {[%clk
0:01:26.4]} 15... Nc5 {[%clk 0:02:04.2]} 16. O-O {[%clk 0:01:21.3]} 16... Bf5
{[%clk 0:01:46.1]} 17. Nd4 {[%clk 0:01:18.7]} 17... Be4 {[%clk 0:01:45.4]} 18.
f5 {[%clk 0:01:14.8]} 18... Nd7 {[%clk 0:01:25.4]} 19. e6 {[%clk 0:01:09.8]}
19... Nf6 {[%clk 0:01:20.2]} 20. exf7+ {[%clk 0:01:07.6]} 20... Rxf7 {[%clk
0:01:20.1]} 21. fxg6 {[%clk 0:01:08]} 21... Bxg6 {[%clk 0:01:18.2]} 22. Nf5
{[%clk 0:01:02.5]} 22... Kh8 {[%clk 0:01:07.5]} 23. Nxe7 {[%clk 0:00:53]} 23...
Rxe7 {[%clk 0:00:57.9]} 24. Rxf6 {[%clk 0:00:46]} 24... Qxc2 {[%clk 0:00:53.8]}
25. Qd4 {[%clk 0:00:45]} 25... Kg8 {[%clk 0:00:46.8]} 26. Raf1 {[%clk
0:00:40.8]} 26... Qe4 {[%clk 0:00:42.2]} 27. Qc5 {[%clk 0:00:22.6]} 27... Qxe3+
{[%clk 0:00:38.8]} 28. Qxe3 {[%clk 0:00:22.8]} 28... Rxe3 {[%clk 0:00:39.5]} 29.
Rd6 {[%clk 0:00:23.1]} 29... Re5 {[%clk 0:00:32.3]} 30. Rc1 {[%clk 0:00:23]}
30... Rae8 {[%clk 0:00:31.4]} 31. Rc7 {[%clk 0:00:23.1]} 31... R8e7 {[%clk
0:00:27.1]} 32. Rd8+ {[%clk 0:00:22]} 32... Kg7 {[%clk 0:00:26.4]} 33. Rcc8
{[%clk 0:00:22]} 33... Re1+ {[%clk 0:00:24.6]} 34. Kf2 {[%clk 0:00:22.6]} 34...
R1e2+ {[%clk 0:00:24.6]} 35. Kg3 {[%clk 0:00:23.2]} 35... Rxa2 {[%clk
0:00:25.1]} 36. h3 {[%clk 0:00:23.5]} 36... Ra3+ {[%clk 0:00:23.8]} 37. Kg4
{[%clk 0:00:23.6]} 37... Re4+ {[%clk 0:00:22.7]} 38. Kg5 {[%clk 0:00:24.1]}
38... h6# {[%clk 0:00:22.9]} 0-1

[Event "Late-Titled-Tuesday-Blitz-October-24-2023"]
[Site "Chess.com"]
[Date "2023.10.24"]
[Round "9"]
[White "Mikhail_Golubev"]
[Black "FedaMaster"]
[Result "0-1"]
[WhiteElo "2567"]
[BlackElo "2674"]
[TimeControl "180+1"]
[EndTime "15:42:55 PDT"]
[Termination "FedaMaster won on time"]

1. e4 {[%clk 0:03:00.9]} 1... d5 {[%clk 0:02:59.3]} 2. exd5 {[%clk 0:02:58]}
2... Qxd5 {[%clk 0:03:00.2]} 3. Nc3 {[%clk 0:02:57.9]} 3... Qd6 {[%clk
0:03:00.8]} 4. d4 {[%clk 0:02:54.8]} 4... Nf6 {[%clk 0:03:00.6]} 5. Nf3 {[%clk
0:02:54.7]} 5... Bg4 {[%clk 0:02:58.7]} 6. h3 {[%clk 0:02:48.6]} 6... Bh5 {[%clk
0:02:58]} 7. g4 {[%clk 0:02:32.9]} 7... Bg6 {[%clk 0:02:58.1]} 8. Bg2 {[%clk
0:02:32.6]} 8... c6 {[%clk 0:02:57.8]} 9. Qe2 {[%clk 0:02:13.5]} 9... Nbd7
{[%clk 0:02:52.9]} 10. Be3 {[%clk 0:01:40.3]} 10... e6 {[%clk 0:02:51.6]} 11.
O-O-O {[%clk 0:01:35.2]} 11... Qb4 {[%clk 0:02:43.9]} 12. Nh4 {[%clk 0:01:26.7]}
12... Nb6 {[%clk 0:02:42.7]} 13. a3 {[%clk 0:01:08]} 13... Qa5 {[%clk
0:02:39.3]} 14. Nxg6 {[%clk 0:00:48.9]} 14... hxg6 {[%clk 0:02:28.2]} 15. Nb1
{[%clk 0:00:38.4]} 15... O-O-O {[%clk 0:02:17.2]} 16. Rd3 {[%clk 0:00:36.8]}
16... Nfd5 {[%clk 0:02:14.5]} 17. Rhd1 {[%clk 0:00:33.9]} 17... Nc4 {[%clk
0:02:05.9]} 18. Rb3 {[%clk 0:00:33.4]} 18... b5 {[%clk 0:02:03.8]} 19. Nc3
{[%clk 0:00:24.8]} 19... Rd7 {[%clk 0:01:38.1]} 20. Bxd5 {[%clk 0:00:20.4]}
20... exd5 {[%clk 0:01:37]} 21. Na2 {[%clk 0:00:16.5]} 21... Qc7 {[%clk
0:01:23.2]} 22. Qf3 {[%clk 0:00:13.5]} 22... Qd6 {[%clk 0:01:10.6]} 23. Kb1
{[%clk 0:00:13.3]} 23... Qf6 {[%clk 0:01:10.1]} 24. Qg2 {[%clk 0:00:12.1]} 24...
a5 {[%clk 0:01:00.3]} 25. Nc1 {[%clk 0:00:12.2]} 25... a4 {[%clk 0:00:58.5]} 26.
Rbd3 {[%clk 0:00:11.8]} 26... Re7 {[%clk 0:00:52]} 27. c3 {[%clk 0:00:10.9]}
27... Qe6 {[%clk 0:00:50.8]} 28. Ne2 {[%clk 0:00:10.3]} 28... Qe4 {[%clk
0:00:51.2]} 29. Qf1 {[%clk 0:00:03.4]} 29... Qf3 {[%clk 0:00:45.8]} 30. Ng1
{[%clk 0:00:03.3]} 30... Qh1 {[%clk 0:00:45]} 31. Ka2 {[%clk 0:00:02.7]} 31...
Re4 {[%clk 0:00:41.7]} 32. Bc1 {[%clk 0:00:02.4]} 32... Bd6 {[%clk 0:00:41.4]}
33. Rf3 {[%clk 0:00:01.9]} 33... f6 {[%clk 0:00:39.4]} 34. Rfd3 {[%clk
0:00:01.5]} 34... Bh2 {[%clk 0:00:36.6]} 0-1

[Event "Late-Titled-Tuesday-Blitz-October-24-2023"]
[Site "Chess.com"]
[Date "2023.10.24"]
[Round "9"]
[White "Andrei_Skvortsov"]
[Black "koncheto"]
[Result "1-0"]
[WhiteElo "2676"]
[BlackElo "2569"]
[TimeControl "180+1"]
[EndTime "15:43:00 PDT"]
[Termination "Andrei_Skvortsov won by resignation"]

1. e4 {[%clk 0:03:00.9]} 1... c5 {[%clk 0:02:58.4]} 2. d4 {[%clk 0:03:00.4]}
2... cxd4 {[%clk 0:02:58.7]} 3. Qxd4 {[%clk 0:03:01.3]} 3... Nc6 {[%clk
0:02:58.8]} 4. Qd3 {[%clk 0:03:01.7]} 4... Nf6 {[%clk 0:02:58.6]} 5. Nc3 {[%clk
0:03:02.3]} 5... d6 {[%clk 0:02:58.6]} 6. Nf3 {[%clk 0:03:02.2]} 6... g6 {[%clk
0:02:58.6]} 7. Be2 {[%clk 0:03:02.7]} 7... Bg4 {[%clk 0:02:58.5]} 8. O-O {[%clk
0:03:03]} 8... Bg7 {[%clk 0:02:58.3]} 9. Nd5 {[%clk 0:03:03]} 9... O-O {[%clk
0:02:56.3]} 10. c3 {[%clk 0:03:03]} 10... Rc8 {[%clk 0:02:55.9]} 11. Bg5 {[%clk
0:03:02.5]} 11... Nd7 {[%clk 0:02:52.2]} 12. Qe3 {[%clk 0:02:57.1]} 12... Nc5
{[%clk 0:02:46.5]} 13. Bb5 {[%clk 0:02:54.6]} 13... f6 {[%clk 0:02:29.5]} 14.
Bh4 {[%clk 0:02:48.6]} 14... Bxf3 {[%clk 0:02:28.7]} 15. gxf3 {[%clk 0:02:44.9]}
15... Ne5 {[%clk 0:02:26.1]} 16. f4 {[%clk 0:02:41.7]} 16... Nf7 {[%clk
0:01:46.3]} 17. f5 {[%clk 0:02:32.3]} 17... g5 {[%clk 0:01:30.5]} 18. Bg3 {[%clk
0:02:30.5]} 18... a6 {[%clk 0:01:25]} 19. Be2 {[%clk 0:02:24.9]} 19... Ne5
{[%clk 0:01:18.7]} 20. f4 {[%clk 0:02:22.6]} 20... Nf7 {[%clk 0:01:18.6]} 21.
fxg5 {[%clk 0:02:22.2]} 21... Nxg5 {[%clk 0:01:18.4]} 22. Rf4 {[%clk 0:02:17.6]}
22... Nh3+ {[%clk 0:01:17.9]} 23. Kg2 {[%clk 0:02:16.6]} 23... Nxf4+ {[%clk
0:01:18.1]} 24. Qxf4 {[%clk 0:02:12]} 24... Kh8 {[%clk 0:00:56.5]} 25. Qh4
{[%clk 0:01:52.7]} 25... e5 {[%clk 0:00:33.3]} 26. fxe6 {[%clk 0:01:49.4]} 26...
Nxe6 {[%clk 0:00:33.4]} 27. Bg4 {[%clk 0:01:45]} 27... Qe8 {[%clk 0:00:25.8]}
28. Bf5 {[%clk 0:01:41.6]} 28... h6 {[%clk 0:00:14.1]} 29. Bxd6 {[%clk 0:01:35]}
29... Rf7 {[%clk 0:00:09.3]} 30. Bg3 {[%clk 0:01:31.9]} 30... Rc4 {[%clk
0:00:07.8]} 31. Re1 {[%clk 0:01:31.4]} 31... Ng5 {[%clk 0:00:08.2]} 32. Nf4
{[%clk 0:01:25.3]} 32... Qd8 {[%clk 0:00:05.4]} 33. Ng6+ {[%clk 0:01:25.2]}
33... Kg8 {[%clk 0:00:05.5]} 34. Qh5 {[%clk 0:01:25.3]} 34... Qd2+ {[%clk
0:00:05.2]} 35. Qe2 {[%clk 0:01:24.1]} 35... Qxe2+ {[%clk 0:00:05.3]} 36. Rxe2
{[%clk 0:01:25]} 36... b5 {[%clk 0:00:04.8]} 37. h4 {[%clk 0:01:24.4]} 37... Rc6
{[%clk 0:00:03.8]} 38. hxg5 {[%clk 0:01:23.6]} 38... fxg5 {[%clk 0:00:04.7]} 39.
Ne5 {[%clk 0:01:23.6]} 39... Bxe5 {[%clk 0:00:03.4]} 40. Bxe5 {[%clk 0:01:24.5]}
40... a5 {[%clk 0:00:02.7]} 41. a3 {[%clk 0:01:23.5]} 41... Rb7 {[%clk
0:00:01.9]} 42. Bd4 {[%clk 0:01:21.9]} 42... b4 {[%clk 0:00:02.1]} 43. axb4
{[%clk 0:01:21.9]} 43... axb4 {[%clk 0:00:03]} 44. e5 {[%clk 0:01:22.4]} 44...
bxc3 {[%clk 0:00:03.4]} 45. bxc3 {[%clk 0:01:22.5]} 45... Kf7 {[%clk 0:00:04]}
46. Be4 {[%clk 0:01:22.7]} 46... Rbc7 {[%clk 0:00:03.5]} 47. Rf2+ {[%clk
0:01:23.1]} 47... Ke7 {[%clk 0:00:03.3]} 48. Bxc6 {[%clk 0:01:22.5]} 48... Rxc6
{[%clk 0:00:04.2]} 49. Rf6 {[%clk 0:01:22.7]} 49... Rc8 {[%clk 0:00:02.9]} 50.
Rxh6 {[%clk 0:01:22.5]} 50... Ra8 {[%clk 0:00:03.8]} 51. Kg3 {[%clk 0:01:22]}
51... Ra1 {[%clk 0:00:03.5]} 52. Bc5+ {[%clk 0:01:19.3]} 52... Kf7 {[%clk
0:00:03.5]} 53. e6+ {[%clk 0:01:18.4]} 53... Kg7 {[%clk 0:00:03]} 54. e7 {[%clk
0:01:17.4]} 54... Kf7 {[%clk 0:00:02.7]} 55. Rh8 {[%clk 0:01:16.6]} 55... Re1
{[%clk 0:00:03.2]} 56. Rf8+ {[%clk 0:01:16]} 1-0

[Event "Late-Titled-Tuesday-Blitz-October-24-2023"]
[Site "Chess.com"]
[Date "2023.10.24"]
[Round "9"]
[White "randy296"]
[Black "Miguelitro69"]
[Result "1-0"]
[WhiteElo "2127"]
[BlackElo "2269"]
[TimeControl "180+1"]
[EndTime "15:43:06 PDT"]
[Termination "randy296 won by resignation"]

1. e4 {[%clk 0:03:00.9]} 1... c5 {[%clk 0:02:59.8]} 2. Nf3 {[%clk 0:03:00.5]}
2... Nc6 {[%clk 0:03:00.2]} 3. g3 {[%clk 0:02:58.3]} 3... g6 {[%clk 0:02:59.1]}
4. Bg2 {[%clk 0:02:58.3]} 4... Bg7 {[%clk 0:02:59.4]} 5. O-O {[%clk 0:02:58.1]}
5... d6 {[%clk 0:02:59.5]} 6. Re1 {[%clk 0:02:56.1]} 6... Nf6 {[%clk 0:02:59.2]}
7. d3 {[%clk 0:02:52.2]} 7... O-O {[%clk 0:02:58.8]} 8. c3 {[%clk 0:02:52.4]}
8... e5 {[%clk 0:02:58]} 9. a4 {[%clk 0:02:49.6]} 9... h6 {[%clk 0:02:57.5]} 10.
Nbd2 {[%clk 0:02:49.4]} 10... a6 {[%clk 0:02:55.2]} 11. Nc4 {[%clk 0:02:47.7]}
11... Be6 {[%clk 0:02:54.3]} 12. b3 {[%clk 0:02:46.8]} 12... b6 {[%clk
0:02:37.4]} 13. h3 {[%clk 0:02:33.8]} 13... Rb8 {[%clk 0:02:35.5]} 14. Kh2
{[%clk 0:02:30.9]} 14... b5 {[%clk 0:02:33]} 15. axb5 {[%clk 0:02:31.1]} 15...
axb5 {[%clk 0:02:33.9]} 16. Ne3 {[%clk 0:02:31.1]} 16... d5 {[%clk 0:02:27.1]}
17. exd5 {[%clk 0:02:25.5]} 17... Nxd5 {[%clk 0:02:27.2]} 18. Nxd5 {[%clk
0:02:24.9]} 18... Bxd5 {[%clk 0:02:27.3]} 19. Be3 {[%clk 0:02:09.1]} 19... Qd6
{[%clk 0:02:24.9]} 20. Ra6 {[%clk 0:01:48]} 20... Ra8 {[%clk 0:02:20.8]} 21. Qa1
{[%clk 0:01:46.6]} 21... Rxa6 {[%clk 0:02:11.3]} 22. Qxa6 {[%clk 0:01:45.7]}
22... Rb8 {[%clk 0:01:55.8]} 23. d4 {[%clk 0:01:33.2]} 23... cxd4 {[%clk
0:01:41]} 24. cxd4 {[%clk 0:01:33]} 24... Rd8 {[%clk 0:01:22.2]} 25. dxe5 {[%clk
0:01:21.6]} 25... Nxe5 {[%clk 0:01:18.1]} 26. Qxd6 {[%clk 0:01:20.5]} 26... Rxd6
{[%clk 0:01:17.8]} 27. Nxe5 {[%clk 0:01:17.1]} 27... Bxg2 {[%clk 0:01:12.2]} 28.
Kxg2 {[%clk 0:01:06]} 28... Bxe5 {[%clk 0:01:10.8]} 29. Bxh6 {[%clk 0:01:06.5]}
29... f6 {[%clk 0:01:07.7]} 30. Rc1 {[%clk 0:00:58.4]} 30... g5 {[%clk
0:00:57.3]} 31. Rc8+ {[%clk 0:00:53.1]} 31... Kf7 {[%clk 0:00:53]} 32. Bf8
{[%clk 0:00:50.3]} 32... Rd2 {[%clk 0:00:48.3]} 33. Bc5 {[%clk 0:00:49.8]} 33...
Rb2 {[%clk 0:00:43.4]} 34. b4 {[%clk 0:00:49.4]} 34... Rc2 {[%clk 0:00:40.8]}
35. Rd8 {[%clk 0:00:44.8]} 35... Ke6 {[%clk 0:00:34.8]} 36. h4 {[%clk
0:00:44.5]} 36... Kf5 {[%clk 0:00:29.4]} 37. h5 {[%clk 0:00:42.3]} 37... g4
{[%clk 0:00:18.5]} 38. Rg8 {[%clk 0:00:39]} 38... Bc3 {[%clk 0:00:15.6]} 39. h6
{[%clk 0:00:37.3]} 39... Rd2 {[%clk 0:00:15.7]} 40. h7 {[%clk 0:00:37]} 1-0

[Event "Late-Titled-Tuesday-Blitz-October-24-2023"]
[Site "Chess.com"]
[Date "2023.10.24"]
[Round "9"]
[White "Korchmar_Vasiliy"]
[Black "Makswolf200817"]
[Result "0-1"]
[WhiteElo "2763"]
[BlackElo "2635"]
[TimeControl "180+1"]
[EndTime "15:43:09 PDT"]
[Termination "Makswolf200817 won by resignation"]

1. e4 {[%clk 0:03:00.9]} 1... e6 {[%clk 0:02:59.3]} 2. d4 {[%clk 0:03:01]} 2...
d5 {[%clk 0:02:59.9]} 3. e5 {[%clk 0:03:01.6]} 3... c5 {[%clk 0:02:59.8]} 4. c3
{[%clk 0:03:02.3]} 4... Qb6 {[%clk 0:03:00.4]} 5. Nf3 {[%clk 0:03:02.5]} 5...
Bd7 {[%clk 0:03:00.8]} 6. Be2 {[%clk 0:03:02.6]} 6... Bb5 {[%clk 0:03:00.1]} 7.
Bxb5+ {[%clk 0:03:01.8]} 7... Qxb5 {[%clk 0:03:00.3]} 8. a4 {[%clk 0:03:01.8]}
8... Qd7 {[%clk 0:02:59]} 9. dxc5 {[%clk 0:02:52.6]} 9... Bxc5 {[%clk
0:02:57.8]} 10. O-O {[%clk 0:02:53.2]} 10... Ne7 {[%clk 0:02:54.4]} 11. b4
{[%clk 0:02:49.4]} 11... Bb6 {[%clk 0:02:54.4]} 12. Nbd2 {[%clk 0:02:43.4]}
12... a5 {[%clk 0:02:37.6]} 13. b5 {[%clk 0:02:41.3]} 13... Qc8 {[%clk
0:02:36.6]} 14. Ba3 {[%clk 0:02:38.6]} 14... Bc5 {[%clk 0:02:28.3]} 15. c4
{[%clk 0:02:39.1]} 15... O-O {[%clk 0:02:22.3]} 16. cxd5 {[%clk 0:02:24.4]}
16... Bxa3 {[%clk 0:02:20]} 17. Rxa3 {[%clk 0:02:25.3]} 17... Nxd5 {[%clk
0:02:18.6]} 18. Ne4 {[%clk 0:02:25.8]} 18... Nd7 {[%clk 0:02:18.1]} 19. Qb1
{[%clk 0:01:59.9]} 19... h6 {[%clk 0:02:10.1]} 20. Rc1 {[%clk 0:01:56.2]} 20...
Qb8 {[%clk 0:02:09.5]} 21. Neg5 {[%clk 0:01:43]} 21... hxg5 {[%clk 0:01:57.9]}
22. Nxg5 {[%clk 0:01:43.9]} 22... g6 {[%clk 0:01:56.5]} 23. Nxe6 {[%clk
0:01:44.3]} 23... Re8 {[%clk 0:01:44.5]} 24. Ng5 {[%clk 0:01:42.2]} 24... Qxe5
{[%clk 0:01:42.8]} 25. Rg3 {[%clk 0:01:40.1]} 25... Nc3 {[%clk 0:01:38]} 26.
Rgxc3 {[%clk 0:01:23.8]} 26... Qxg5 {[%clk 0:01:35.7]} 27. Rc7 {[%clk
0:01:24.3]} 27... Ne5 {[%clk 0:01:26.7]} 28. Rxb7 {[%clk 0:01:20.1]} 28... Nf3+
{[%clk 0:00:43.8]} 29. Kh1 {[%clk 0:01:19.7]} 29... Qf4 {[%clk 0:00:41.9]} 30.
g3 {[%clk 0:01:01.6]} 30... Qh6 {[%clk 0:00:41.6]} 31. Kg2 {[%clk 0:00:55.8]}
31... Ng5 {[%clk 0:00:22.6]} 32. h4 {[%clk 0:00:56]} 32... Ne6 {[%clk
0:00:22.8]} 33. Qb3 {[%clk 0:00:38.5]} 33... Qxc1 {[%clk 0:00:20.5]} 34. h5
{[%clk 0:00:37.3]} 34... Qg5 {[%clk 0:00:15.9]} 35. hxg6 {[%clk 0:00:37.1]}
35... Qxg6 {[%clk 0:00:16.5]} 36. Qf3 {[%clk 0:00:31.5]} 36... Rab8 {[%clk
0:00:13.9]} 37. Ra7 {[%clk 0:00:30.5]} 37... Ng5 {[%clk 0:00:13.7]} 38. Qd5
{[%clk 0:00:26]} 38... Qe4+ {[%clk 0:00:13.6]} 39. Qxe4 {[%clk 0:00:26.5]} 39...
Nxe4 {[%clk 0:00:14.3]} 40. Rxa5 {[%clk 0:00:27.4]} 40... Ra8 {[%clk 0:00:14.5]}
41. Rxa8 {[%clk 0:00:27.6]} 41... Rxa8 {[%clk 0:00:15.4]} 0-1

[Event "Late-Titled-Tuesday-Blitz-October-24-2023"]
[Site "Chess.com"]
[Date "2023.10.24"]
[Round "9"]
[White "Tonychess32"]
[Black "GoltsevDmitry2000"]
[Result "0-1"]
[WhiteElo "2535"]
[BlackElo "2650"]
[TimeControl "180+1"]
[EndTime "15:43:09 PDT"]
[Termination "GoltsevDmitry2000 won by resignation"]

1. e4 {[%clk 0:03:00.9]} 1... e6 {[%clk 0:03:00.1]} 2. d4 {[%clk 0:03:00.3]}
2... d5 {[%clk 0:03:01]} 3. e5 {[%clk 0:02:59.7]} 3... c5 {[%clk 0:03:01.5]} 4.
c3 {[%clk 0:03:00.2]} 4... Nc6 {[%clk 0:03:01.9]} 5. Nf3 {[%clk 0:03:00.6]} 5...
Nge7 {[%clk 0:03:02.4]} 6. Bd3 {[%clk 0:03:00.3]} 6... Nf5 {[%clk 0:03:02.5]} 7.
dxc5 {[%clk 0:02:57.3]} 7... Bxc5 {[%clk 0:03:01.9]} 8. O-O {[%clk 0:02:57.4]}
8... Be7 {[%clk 0:02:56.9]} 9. Nbd2 {[%clk 0:02:55.7]} 9... h5 {[%clk
0:02:55.2]} 10. Nb3 {[%clk 0:02:54.9]} 10... g5 {[%clk 0:02:54.8]} 11. Nbd4
{[%clk 0:02:44.2]} 11... g4 {[%clk 0:02:50.5]} 12. Nxc6 {[%clk 0:02:39.4]} 12...
bxc6 {[%clk 0:02:50]} 13. Nd4 {[%clk 0:02:38.5]} 13... Nxd4 {[%clk 0:02:46.3]}
14. cxd4 {[%clk 0:02:38.7]} 14... Qb6 {[%clk 0:02:44.2]} 15. Be3 {[%clk
0:02:28.5]} 15... Qxb2 {[%clk 0:02:31.7]} 16. f4 {[%clk 0:02:28.6]} 16... Qa3
{[%clk 0:02:14.9]} 17. Qe2 {[%clk 0:02:17.7]} 17... c5 {[%clk 0:01:48]} 18. dxc5
{[%clk 0:02:10.7]} 18... Bxc5 {[%clk 0:01:47.4]} 19. Bxc5 {[%clk 0:02:10.7]}
19... Qxc5+ {[%clk 0:01:46.8]} 20. Kh1 {[%clk 0:02:11.3]} 20... h4 {[%clk
0:01:42.4]} 21. Rac1 {[%clk 0:02:00.7]} 21... Qb6 {[%clk 0:01:27.9]} 22. Qxg4
{[%clk 0:01:53.4]} 22... h3 {[%clk 0:01:26.8]} 23. f5 {[%clk 0:01:26.3]} 23...
hxg2+ {[%clk 0:01:25.4]} 24. Qxg2 {[%clk 0:01:26.3]} 24... Bb7 {[%clk 0:01:21]}
25. fxe6 {[%clk 0:01:25.9]} 25... Qxe6 {[%clk 0:01:16.1]} 26. Bb5+ {[%clk
0:01:10.1]} 26... Kf8 {[%clk 0:00:57.5]} 27. Rc7 {[%clk 0:01:00]} 27... Rb8
{[%clk 0:00:35.5]} 28. Bd7 {[%clk 0:00:40.1]} 28... Qxe5 {[%clk 0:00:32.7]} 29.
Rxf7+ {[%clk 0:00:02.8]} 29... Kxf7 {[%clk 0:00:32.6]} 30. Be6+ {[%clk
0:00:02.2]} 30... Kxe6 {[%clk 0:00:27.2]} 31. Qg4+ {[%clk 0:00:02.1]} 31... Qf5
{[%clk 0:00:23.2]} 32. Re7+ {[%clk 0:00:01.3]} 32... Kxe7 {[%clk 0:00:22.7]} 33.
Qxf5 {[%clk 0:00:01.9]} 33... d4+ {[%clk 0:00:17.8]} 34. Kg1 {[%clk 0:00:02.2]}
34... Rbg8+ {[%clk 0:00:18.4]} 35. Kf1 {[%clk 0:00:01.8]} 35... Rf8 {[%clk
0:00:19]} 0-1